Cogmind - Beta 14 @@@ ROGUE MODE // 2024.10.06 @ 14:26:30 Player: Spoing Result: Destroyed by X-57 Shotgunner with Shotgun Performance ------------- Evolutions (2) 1000 Regions Visited (7) 1400 Robots Destroyed (42) 210 Value Destroyed (1057) 1057 Prototype IDs (23) 460 Alien Tech Used (0) 0 Bonus (321) 321 TOTAL SCORE: 4448 Bonus ------- High Alert Combat Kills 21 Aligned with FarCom 300 Cogmind --------- Core Integrity 0/550 Matter 126/300 Energy 88/100 System Corruption 1% Temperature Cool (0) Movement Flying (112) Ox2 Location -8/Materials Parts ------- > --- POWER (1) -------- (None) > --- PROPULSION (4) --- Surge Thruster > --- UTILITY (4) ------ Medium Storage Unit Visual Processing Unit > --- WEAPON (2) ------- (None) > --- INVENTORY (10) --- Light Nuclear Core Light Nuclear Core Light Nuclear Core Light Nuclear Core Peak State ------------ > --- POWER ------------ Ion Engine > --- PROPULSION ------- Wheel > --- UTILITY ---------- Large Storage Unit Signal Interpreter Heavy Armor Plating > --- WEAPON ----------- Firepult > --- INVENTORY -------- Ion Engine Light Nuclear Core Light Nuclear Core Light Nuclear Core Light Nuclear Core Flight Unit Flight Unit Medium Storage Unit Weight Redist. System EM Pulse Gun Small Laser Grenade Launcher Mining Laser [Rating: 32] Favorites ----------- Power Ion Engine Engine Ion Engine Power Core Light Nuclear Core Propulsion Wheel Wheel Wheel Flight Unit Flight Unit Utility Large Storage Unit Device Sensor Array Storage Large Storage Unit Processor Signal Interpreter Protection Heavy Armor Plating Weapon EM Pulse Gun Energy Gun EM Pulse Gun Energy Cannon Firepult Launcher Grenade Launcher Special Weapon Mining Laser Slashing Weapon Katana Build | -11 -10 -10 -9 -9 -9 -8 -8 ------- Run | Yrd Mat Min Mat Min Exi Min Mat Slots Evolved 4 | . . . 2 . . . 2 Power . | . . . . . . . . Propulsion 2 | . . . 1 . . . 1 Utility 2 | . . . 1 . . . 1 Weapon . | . . . . . . . . Parts Attached 44 | 7 3 . 9 1 1 . 23 Power 4 | 1 . . . . . . 3 Engine 2 | 1 . . . . . . 1 Core 2 | . . . . . . . 2 Reactor . | . . . . . . . . Propulsion 10 | 2 . . . . . . 8 Treads . | . . . . . . . . Leg . | . . . . . . . . Wheel 2 | 2 . . . . . . . Hover . | . . . . . . . . Flight 8 | . . . . . . . 8 Utility 15 | 1 2 . 6 . . . 6 Device 3 | . 1 . 1 . . . 1 Storage 5 | 1 1 . 1 . . . 2 Processor 3 | . . . 2 . . . 1 Hackware . | . . . . . . . . Protection 4 | . . . 2 . . . 2 Artifact . | . . . . . . . . Weapon 15 | 3 1 . 3 1 1 . 6 Energy Gun 8 | 3 . . 2 1 . . 2 Energy Cannon 1 | . . . . . 1 . . Ballistic Gun . | . . . . . . . . Ballistic Cannon . | . . . . . . . . Launcher 3 | . 1 . 1 . . . 1 Special Weapon 1 | . . . . . . . 1 Impact Weapon . | . . . . . . . . Slashing Weapon 2 | . . . . . . . 2 Piercing Weapon . | . . . . . . . . Special Melee Weapon . | . . . . . . . . Unidentified Prototypes . | . . . . . . . . Parts Lost 17 | . . . 1 1 . . 15 Power 1 | . . . . . . . 1 Propulsion 7 | . . . 1 . . . 6 Utility 3 | . . . . . . . 3 Weapon 6 | . . . . 1 . . 5 Highest Loss Streak 8 | . . . 1 1 . . 8 To Critical Strikes . | . . . . . . . . Average Slot Usage (%) 64 | . 95 100 79 63 58 55 51 Engine 9 | . 14 14 11 11 11 11 5 Wheel 12 | . 28 28 18 11 11 11 4 Flight 2 | . . . . . . . 7 Device 3 | . 10 14 6 . . . 2 Storage 10 | . 14 14 11 11 11 11 8 Processor 7 | . . . 8 11 11 11 5 Protection 1 | . . . 2 . . . 4 Energy Gun 8 | . 17 14 15 19 6 . 2 Energy Cannon 4 | . . . . . 7 11 5 Launcher 2 | . 10 14 6 . . . . Peak Build Rating 32 | 6 7 7 13 9 26 26 32 Average Rating 17 | 2 6 7 10 8 20 26 22 On Entrance 11 | . 6 7 7 8 9 26 26 Naked Turns . | . . . . . . . . Heaviest Build 62 | 14 21 21 45 28 47 47 62 Greatest Support 20 | 20 20 20 20 10 10 10 18 Greatest Overweight (x) 20 | . 1 1 4 2 4 4 20 Average Overweight (x) 2 | . . 1 1 2 3 4 2 Largest Inventory Capacity 15 | 8 10 10 15 15 15 15 15 Average Capacity 12 | 5 8 10 11 15 15 15 12 Most Carried 15 | 5 8 8 12 15 15 15 15 Average Carried 11 | 3 6 8 9 13 14 15 11 Final Capacity 15 | 8 10 10 15 15 15 15 10 Final Carried 15 | 2 8 8 12 15 15 15 4 Class Distribution -------------------- 92% | Mutant 7% | Sprinter Dominant Class ---------------- Mutant | -10/Materials Mutant | -10/Mines Mutant | -9/Materials Mutant | -9/Mines Mutant | -9/Exiles Mutant | -8/Mines Mutant | -8/Materials Resources | -11 -10 -10 -9 -9 -9 -8 -8 ----------- Run | Yrd Mat Min Mat Min Exi Min Mat Matter Collected 529 | 194 130 36 102 18 . . 49 Remotely . | . . . . . . . . Salvage Created 1286 | . 71 . 212 130 . . 873 Parts 75 | . 9 . 19 8 . . 39 Haulers Intercepted 2 | . . . 1 . . . 1 Recyclers Shooed 1 | . . . . . . . 1 Parts Field Recycled . | . . . . . . . . Retrieved Matter . | . . . . . . . . Parts Self-Destructed . | . . . . . . . . Prevented . | . . . . . . . . Kills | -11 -10 -10 -9 -9 -9 -8 -8 ------- Run | Yrd Mat Min Mat Min Exi Min Mat Combat Hostiles Destroyed 25 | . 6 . 3 3 . . 13 Melee 2 | . . . . . . . 2 Guns 6 | . 3 . 2 1 . . . Cannons 2 | . . . . . . . 2 AOE 10 | . 3 . 1 2 . . 4 Classes Destroyed 13 | . 3 . 3 1 . . 6 Worker 1 | . . . . . . . 1 Builder 6 | . . . . . . . 6 Hauler 2 | . . . 1 . . . 1 Recycler 1 | . . . . . . . 1 Mechanic 1 | . . . . . . . 1 Operator 1 | . 1 . . . . . . Watcher 5 | . 1 . 3 . . . 1 Swarmer 6 | . 6 . . . . . . Cutter 2 | . . . . . . . 2 Grunt 13 | . . . 2 2 . . 9 Duelist 1 | . . . . 1 . . . Sentry 2 | . . . 1 . . . 1 Hunter 1 | . . . . . . . 1 Best Kill Streak 12 | . 7 . 4 3 . . 12 Combat Bots Only 6 | . 6 . 2 3 . . 5 Max Kills in Single Turn 3 | . 2 . 2 2 . . 3 Gunslinging . | . . . . . . . . Exploded 2 | . 2 . 1 2 . . 1 Melee 1 | . . . . . . . 1 Uniques/NPCs Destroyed . | . . . . . . . . Combat | -11 -10 -10 -9 -9 -9 -8 -8 -------- Run | Yrd Mat Min Mat Min Exi Min Mat Hostile Shots Fired 225 | . 16 22 10 7 . . 170 Missed 63 | . 9 10 1 . . . 43 Damage Taken 2397 | . 88 88 118 87 . . 2016 Core 627 | . 33 16 10 10 . . 558 Absorbed by Shields . | . . . . . . . . Core Remaining (%) 91 | 100 . 80 . . . 95 . Volleys Fired 54 | . 9 . 9 7 . . 29 Largest 2 | . 2 . 2 2 . . 2 Hottest 250 | . 80 . 80 70 . . 250 Shots Fired 78 | . 16 . 18 8 . . 36 Gun 44 | . 10 . 16 7 . . 11 Cannon 12 | . . . . . . . 12 Launcher 15 | . 6 . 2 1 . . 6 Special 7 | . . . . . . . 7 Kinetic . | . . . . . . . . Thermal 36 | . . . 7 . . . 29 Explosive 15 | . 6 . 2 1 . . 6 Electromagnetic 27 | . 10 . 9 7 . . 1 Robot Hit Streak 17 | . 3 . 6 14 . . 17 Robot Miss Streak 2 | . 2 . 2 . . . 2 Penetration Max . | . . . . . . . . Secondary Targets . | . . . . . . . . Shots Hit Robots 56 | . 9 . 12 8 . . 27 Core Hits 67 | . 10 . 9 6 . . 42 Critical Kills . | . . . . . . . . Critical Parts Destroyed . | . . . . . . . . Critical Strikes . | . . . . . . . . Melee Attacks 14 | . . . . . . . 14 Impact . | . . . . . . . . Slashing 14 | . . . . . . . 14 Piercing . | . . . . . . . . Sneak Attacks . | . . . . . . . . Combat Hostiles . | . . . . . . . . Follow-up Attacks . | . . . . . . . . Damage Inflicted 2573 | . 276 . 337 184 . . 1776 Guns 383 | . 85 . 129 93 . . 76 Cannons 263 | . . . . . . . 263 Explosions 1741 | . 191 . 208 91 . . 1251 Melee 160 | . . . . . . . 160 Ramming 2 | . . . . . . . 2 Kinetic . | . . . . . . . . Thermal 1399 | . . . 60 . . . 1339 Explosive 738 | . 191 . 181 91 . . 275 Electromagnetic 274 | . 85 . 96 93 . . . Impact . | . . . . . . . . Slashing 160 | . . . . . . . 160 Piercing . | . . . . . . . . Highest Corruption 1 | . . . . . . . 1 Average Corruption 1 | . . . . . . . 1 Corruption Purged . | . . . . . . . . Corruption Blocked . | . . . . . . . . Overload Shots . | . . . . . . . . Overflow Damage 19 | . . . 11 . . . 8 Projectiles . | . . . . . . . . Explosions 19 | . . . 11 . . . 8 Melee . | . . . . . . . . Knockbacks . | . . . . . . . . Impact . | . . . . . . . . Kinetic . | . . . . . . . . Secondary . | . . . . . . . . Self-Inflicted Damage 62 | . 36 . . 15 . . 11 Shots 3 | . 1 . . 1 . . 1 Rammed 1 | . . . . . . . 1 Targets Rammed 1 | . . . . . . . 1 Kicked . | . . . . . . . . Crushed . | . . . . . . . . Highest Temperature 524 | . 18 . 132 12 . . 524 Average Temperature 171 | . 9 . 54 9 . . 225 Received Heat Transfer 750 | . . . 51 42 . . 657 Effects 9 | . . . . . . . 9 Shutdowns 2 | . . . . . . . 2 Energy Bleed 5 | . . . . . . . 5 Interference 1 | . . . . . . . 1 Short Circuit 1 | . . . . . . . 1 Siege Activations . | . . . . . . . . Robots Corrupted . | . . . . . . . . Combat Hostiles . | . . . . . . . . Parts Fried . | . . . . . . . . Impact Corruptions . | . . . . . . . . Robots Melted 8 | . . . . . . . 8 Combat Hostiles 5 | . . . . . . . 5 Parts Melted 30 | . . . . . . . 30 Heat Transferred 7550 | . . . 125 . . . 7425 Parts Sabotaged . | . . . . . . . . Parts Stolen . | . . . . . . . . Parts Stripped . | . . . . . . . . Power Chain Reactions 1 | . . . 1 . . . . Alert | -11 -10 -10 -9 -9 -9 -8 -8 ------- Run | Yrd Mat Min Mat Min Exi Min Mat Peak Influence 551 | . 252 45 164 159 . . 551 Initial 63 | . . 45 17 63 . . . Average 136 | . 97 45 56 156 . . 248 Maximum Alert Level 2 | . 1 . . . . . 2 Low Security (%) 76 | 100 92 100 100 100 . 100 43 Level 1 12 | . 7 . . . . . 28 Level 2 11 | . . . . . . . 28 Level 3 . | . . . . . . . . Level 4 . | . . . . . . . . Level 5 . | . . . . . . . . High Security . | . . . . . . . . Max Security . | . . . . . . . . Squads Dispatched 7 | . 1 . . . . . 6 Investigation 1 | . . . . . . . 1 Extermination . | . . . . . . . . Reinforcement 6 | . 1 . . . . . 5 Assault . | . . . . . . . . Garrison . | . . . . . . . . Intercept . | . . . . . . . . Searches Triggered . | . . . . . . . . Construction Impeded 2 | . . . . . . . 2 Haulers Reinforced . | . . . . . . . . Active Scanning Responses . | . . . . . . . . Cargo Convoy Interrupts . | . . . . . . . . Stealth | -11 -10 -10 -9 -9 -9 -8 -8 --------- Run | Yrd Mat Min Mat Min Exi Min Mat Distress Signals 6 | . . . . . . . 6 Communications Jammed . | . . . . . . . . Distress Signals . | . . . . . . . . Times Spotted 64 | . 9 6 6 1 . . 42 Peak Tracking Total 10 | . 4 6 5 1 . . 10 Tactical Retreats 8 | . 1 . 1 . . . 6 Traps | -11 -10 -10 -9 -9 -9 -8 -8 ------- Run | Yrd Mat Min Mat Min Exi Min Mat Traps Triggered . | . . . . . . . . Indirectly . | . . . . . . . . Trap Hack Attempts . | . . . . . . . . Triggered . | . . . . . . . . Disarmed . | . . . . . . . . Reprogrammed . | . . . . . . . . Reused . | . . . . . . . . Traps Extracted . | . . . . . . . . Installed . | . . . . . . . . Triggered . | . . . . . . . . Machines | -11 -10 -10 -9 -9 -9 -8 -8 ---------- Run | Yrd Mat Min Mat Min Exi Min Mat Machines Disabled 5 | . . . . 1 . . 4 Max in Single Turn 1 | . . . . 1 . . 1 Machines Repaired . | . . . . . . . . Machines Dismantled . | . . . . . . . . Machines Sabotaged . | . . . . . . . . Overloaded Fab Kills . | . . . . . . . . Hacking | -11 -10 -10 -9 -9 -9 -8 -8 --------- Run | Yrd Mat Min Mat Min Exi Min Mat Machines Accessed 15 | . 2 . 6 . 1 . 6 Terminals 11 | . 2 . 5 . . . 4 Fabricators . | . . . . . . . . Repair Stations . | . . . . . . . . Recycling Units . | . . . . . . . . Scanalyzers 3 | . . . 1 . . . 2 Garrison Access . | . . . . . . . . Total Hacks 46 | . 6 . 23 . 1 . 16 Successful 20 | . 3 . 10 . 1 . 6 Failed 26 | . 3 . 13 . . . 10 Catastrophic 8 | . 2 . 4 . . . 2 Database Lockouts . | . . . . . . . . Manual 24 | . 6 . 15 . 1 . 2 Terminals 29 | . 6 . 15 . . . 8 Fabricators . | . . . . . . . . Repair Stations . | . . . . . . . . Recycling Units . | . . . . . . . . Scanalyzers 16 | . . . 8 . . . 8 Garrison Access . | . . . . . . . . Terminal Hacks 8 | . 3 . 4 . 1 . . Robot Analysis 3 | . . . 3 . . . . Branch Access Points 1 | . 1 . . . . . . Terminal Index 2 | . 1 . 1 . . . . Unreport Threat 1 | . 1 . . . . . . Derelict Proto ID Bank 1 | . . . . . 1 . . Fabricator Hacks . | . . . . . . . . Repair Station Hacks . | . . . . . . . . Recycling Unit Hacks . | . . . . . . . . Scanalyzer 12 | . . . 6 . . . 6 Insert Component 6 | . . . 3 . . . 3 Analyze 6 | . . . 3 . . . 3 Garrison Access Hacks . | . . . . . . . . Unauthorized Hacks . | . . . . . . . . Terminals . | . . . . . . . . Fabricators . | . . . . . . . . Repair Stations . | . . . . . . . . Recycling Units . | . . . . . . . . Scanalyzers . | . . . . . . . . Garrison Access . | . . . . . . . . Data Cores Recovered 1 | . 1 . . . . . . Used . | . . . . . . . . Hacking Detections 15 | . 3 . 6 . . . 6 Full Trace Events 2 | . . . . . . . 2 Feedback Events . | . . . . . . . . Feedback Blocked . | . . . . . . . . Robot Schematics Acquired . | . . . . . . . . Robots Built . | . . . . . . . . Authchips . | . . . . . . . . Time . | . . . . . . . . Total Robot Build Rating . | . . . . . . . . Part Schematics Acquired 6 | . . . 3 . . . 3 Parts Built . | . . . . . . . . Authchips . | . . . . . . . . Time . | . . . . . . . . Total Part Build Rating . | . . . . . . . . Parts Repaired . | . . . . . . . . Time . | . . . . . . . . Parts Recycled . | . . . . . . . . Recycled Matter . | . . . . . . . . Retrieved Matter . | . . . . . . . . Retrieved Components . | . . . . . . . . Parts Scanalyzed 6 | . . . 3 . . . 3 Part Schematics Acquired 6 | . . . 3 . . . 3 Parts Damaged . | . . . . . . . . Bothacking | -11 -10 -10 -9 -9 -9 -8 -8 ------------ Run | Yrd Mat Min Mat Min Exi Min Mat Used RIF Installer . | . . . . . . . . Robots Hacked . | . . . . . . . . Non-combat . | . . . . . . . . Combat . | . . . . . . . . Robot Hacks Applied . | . . . . . . . . Relay Couplers Released . | . . . . . . . . Fabnet Peak Effective % . | . . . . . . . . Robots Rewired . | . . . . . . . . Allies Hacked . | . . . . . . . . Hacks Repelled . | . . . . . . . . Allies | -11 -10 -10 -9 -9 -9 -8 -8 -------- Run | Yrd Mat Min Mat Min Exi Min Mat Total Allies . | . . . . . . . . Largest Group . | . . . . . . . . Highest-Rated Group . | . . . . . . . . Highest-Rated Ally . | . . . . . . . . Total Orders . | . . . . . . . . Ally Attacks . | . . . . . . . . Total Damage . | . . . . . . . . Kills . | . . . . . . . . Allies Corrupted . | . . . . . . . . Allies Melted . | . . . . . . . . Intel | -11 -10 -10 -9 -9 -9 -8 -8 ------- Run | Yrd Mat Min Mat Min Exi Min Mat Robot Analysis Total 2 | . . . 2 . . . . Derelict Logs Recovered . | . . . . . . . . Drone Launches . | . . . . . . . . Drone Recoveries . | . . . . . . . . Exploration | -11 -10 -10 -9 -9 -9 -8 -8 ------------- Run | Yrd Mat Min Mat Min Exi Min Mat Turns Passed 1842 | 38 171 15 372 102 429 157 558 Spaces Moved 1307 | 35 162 16 248 75 327 113 331 Core 19 | 12 . . . . . . 7 Treads . | . . . . . . . . Legs . | . . . . . . . . Wheels 1071 | 23 162 16 248 75 327 113 107 Hover . | . . . . . . . . Flight 217 | . . . . . . . 217 Fastest Speed 32 | 50 80 95 80 110 110 140 32 Average Speed 105 | 69 83 95 99 110 129 140 88 Slowest Speed 1050 | 80 95 95 140 110 140 140 1050 Overloaded Moves 14 | . . . . . . . 14 Propulsion Burnouts . | . . . . . . . . Robots Hopped . | . . . . . . . . Cave-ins Triggered . | . . . . . . . . Exploration Rate (%) 26 | 4 24 9 29 20 62 19 42 Regions Visited 7 Branch Regions 4 Pre-discovered Areas . | . . . . . . . . Known Exits Taken 5 | . 1 . 1 1 1 1 . Unknown Exits Taken 2 | 1 . 1 . . . . . Scrap Searched 3 | . . 1 . 2 . . . Spaces Dug 8 | . . . . . . . 8 Terrain Destroyed 182 | . 49 . 14 6 . . 113 Melee 2 | . . . . . . . 2 Projectile 14 | . . . . . . . 14 AOE 166 | . 49 . 14 6 . . 97 Terrain Rammed . | . . . . . . . . Walls Destroyed . | . . . . . . . . Machines Disabled . | . . . . . . . . Actions | -11 -10 -10 -9 -9 -9 -8 -8 --------- Run | Yrd Mat Min Mat Min Exi Min Mat Total 1655 | 46 181 15 356 86 334 112 525 Wait 180 | . . . 73 . . . 107 Move 1300 | 34 161 15 247 74 326 112 331 Hop . | . . . . . . . . Pick Up 40 | 5 7 . 10 4 3 . 11 Fast Attach 3 | 3 . . . . . . . Attach 30 | 3 1 . 5 1 1 . 19 Detach 4 | . . . 1 . . . 3 Swap 11 | 1 2 . 4 . . . 4 Drop 18 | . 1 . 7 . 4 . 6 Fire 54 | . 9 . 9 7 . . 29 Melee 14 | . . . . . . . 14 Ram 1 | . . . . . . . 1 Kick . | . . . . . . . . Crush . | . . . . . . . . Escape Stasis . | . . . . . . . . Rewire . | . . . . . . . . Trap . | . . . . . . . . Miscellaneous . | . . . . . . . . Route ------- -11/Scrapyard -10/Materials (discovered 2 exits: *Min x2) -10/Mines -9/Materials -9/Mines -9/Exiles (discovered 2 exits: *Min x2) -8/Mines -8/Materials (discovered 1 exit: [*Fac]) History --------- Turn | Location | Event 25 | -11/Scrapyard | Discovered new exit (range 12) 39 | -11/Scrapyard | Entered Materials 128 | -10/Materials | Identified exit to Mines 210 | -10/Materials | Entered Mines 211 | -10/Mines | Discovered new exit (range 15) 225 | -10/Mines | Entered Materials 225 | -9/Materials | Evolved 2 slots: Propulsion x1, Utility x1 305 | -9/Materials | Build established: Mutant 526 | -9/Materials | Discovered new exit (range 10) 543 | -9/Materials | Identified exit to Mines 597 | -9/Materials | Entered Mines 694 | -9/Mines | Deemed a non-threat by the Exiles lab entrance 694 | -9/Mines | Discovered new exit (range 5) 698 | -9/Mines | Identified exit to Exiles 699 | -9/Mines | Entered Exiles 727 | -9/Exiles | Met 8R-AWN 745 | -9/Exiles | Met EX-HEX 778 | -9/Exiles | Met EX-BIN 790 | -9/Exiles | Aligned with FarCom system 791 | -9/Exiles | Given EX-Vault access code 816 | -9/Exiles | Opened EX-Vault 824 | -9/Exiles | Found Firepult 862 | -9/Exiles | Warned to stay clear of 0b10 Research branches 900 | -9/Exiles | Met EX-DEC 949 | -9/Exiles | Discovered new exit (range 12) 963 | -9/Exiles | Identified exit to Mines 1113 | -9/Exiles | Discovered exit to Mines (range 14) 1128 | -9/Exiles | Left Exiles lab with Firepult 1128 | -9/Exiles | Entered Mines 1274 | -8/Mines | Discovered new exit (range 9) 1284 | -8/Mines | Identified exit to Materials 1285 | -8/Mines | Entered Materials 1285 | -8/Materials | Evolved 2 slots: Propulsion x1, Utility x1 1589 | -8/Materials | Lost 3 parts (1p1n1u) 1668 | -8/Materials | Lost 3 parts (3w) 1800 | -8/Materials | Core integrity fell below 50% 1825 | -8/Materials | Core integrity fell below 20% 1842 | -8/Materials | Discovered new exit (range 3) 1843 | -8/Materials | Destroyed by X-57 Shotgunner with Shotgun Last Messages --------------- Acquired Surge Thruster. Penetrated by Slug. Critical hit (Burn: +37). Surge Thruster destroyed. Acquired Surge Thruster. Penetrated by Slug. R-06 Scavenger collects Lgt. Nuclear Core. Penetrated by Slug. Terminal disabled. Acquired Surge Thruster. Slug penetrates Wall. Critical hit (Burn: +37). ALERT: Suspicious intruders detected, dispatching Specialist reinforcements to area. Slug penetrates Wall. Axe destroyed. Surge Thruster destroyed. Slammed into X-57 Shotgunner. Destabilizing: System corrupted (+1). EXIT=FOUND Map ----- +----------------------------------------------------+ | | | | | | | | | | | | | | | ?????????????????????????????????????????????????? | | ?????????????????????????????????????????????????? | | ?????????????????????????????????????????????????? | | ?????????????????????????????????????????????????? | | ?????????????????????????????????????????????????? | | ?????????????????????????????????????????????????? | | ?????????????????????????????????????????????????? | | ?????????????????????????????????????????????????? | | ?????????????????????????????????????????????????? | | ?????????????????????????????????????????????????? | | ?????????????????????????????????????????????????? | | ?????????????????????????????????????????????????? | | ?????????????????###?????????????????????????????? | | ????????????????##;#######???????????????????????? | | ????????????????# ]]| [ #?###???????????????????? | | ????????????????# ]] #? #???????????????????? | | ????????????????# ]| # < #???????????????????? | | ????????????##### ] # #???????????????????? | | ??????????### ## gY r @xo #???????????????????? | | ??????##### /## " """ # x k ???????????? | | ??????# """ * [# "Th""" # g ???????? | | ??????# """ w !* "" """ #? gat ???????? | | ??????# """ % # #?############# ???????? | | ??????# ! %####### ##??????????????g????????? | | ??????# " #?????###????????????????????????? | | ??????# = Y" #????????????????????????????????? | | ??????#! "" #????????????????????????????????? | | ??????# #????????????????????????????????? | | ??????######+#########???????????????????????????? | | ??????????# +?????????????????????????? | | ????####### ########???????????????????????????? | | ????# #??????????????????????????????????? | | ????# ##### #??????????????????????????????????? | | ????# #???# #??????????????????????????????????? | | ##### ###?# #??????????????????????????????????? | | # #?# ###????????????????????????????????? | | " # #?# ????????????????????????????????? | | " + T #?# ????H????????????????????????????? | | " # #?# ????????????????????????????????? | | # ######/###??????? ???? ????????????????? | | ## ## "" #?????# ?#? ????????????????? | | #### ## ""S #?????# # # ????? ??????????? | | #### ## "" #?# # # ""???? #?????????? | +----------------------------------------------------+ Best States ------------- Heat Dissipation 31 Energy Generation 14 Energy Capacity 250 Matter Stores 300 Matter Capacity 300 Sight Range 18 Robot Scan Range 14 Terrain Scan Density 10 Additional Mass Support 6 Armor Coverage 600 Evasion (%) 63 Item Schematics ----------------- Lgt. Nuclear Core | -9/Materials | Scanalyzed Flight Unit | -9/Materials | Scanalyzed Grenade Launcher | -9/Materials | Scanalyzed VTOL Module | -8/Materials | Scanalyzed Axe | -8/Materials | Scanalyzed Hrd. Medium Armor Plating | -8/Materials | Scanalyzed Robot Schematics ------------------ None Fabricated ------------ Nothing Alien Tech Used ----------------- None Achievements -------------- Slippery One Challenges ------------ None Game ------ Seed SurveybotExpertSpoofer Manual? 0 Play Time 00:27:48 Cumulative 23.9 hours Start 2024.10.06 @ 13:59:52 End 2024.10.06 @ 14:26:30 Sessions 1 Manual Loads 0 Difficulty Rogue Special Mode None Game No. 25 Rogue 24 Adventurer 1 Explorer 0 Win Type - Total 0 Types 0/0/0/0/0/0/0/0/0 Lore% 14 Gallery% 22 Achievement% 22 Wizard Run 0 Options --------- Layout 1 ASCII 0 Keyboard 0 Movement Mouse Keybinds 0 Fullscreen 1 Font 32/SmallcapsGlow Map View 50x35 Zoom Use 0% Tactical HUD 0 Map Filters NONE Filters NONE Steam 1 RUN: 707bd494-79e3-4d93-9eec-872d7f50d43d